{"text_format":"1","workbook":"xlsx","n_sheets":4,"sheets":["Instructions","GME Pro Forma","GME Support Calculator","Data for Drop Down"],"not_rendered":{"charts":0,"images":0,"macros":1,"external_links":0,"defined_names":5,"comments":0,"pivot_tables":0},"unopened":[],"bounds":{"document_bytes":16777216,"sheet_cells":100000,"rows_first":2000,"rows_last":500,"rows_between":2000,"halvings":0,"cell_chars":16384,"cell_head_chars":4096},"cells_cut":0,"cells_raw":0,"read":"whole","date_system":"1900"}

{"sheet":"Instructions","index":0,"n_rows":19,"n_cols":1,"rows_kept":19,"cut":false,"hidden":false,"merged":[]}
["Instructions"]
[]
["Begin with the GME Pro Forma tab:"]
["1) Complete the blue boxes in cells A4,A6,A8,A10,A12,A14,A16. You must complete these to be able to use the calculator in the next steps."]
[]
["2)In the orange box labeled metrics, fill out cells D3, D4, D5,D6 and D8. If applicable, extend metrics to match years in program and extend any formulas"]
[]
["3) In next section in the gray boxes, fill out the resident incremental FTE count in cells C19-E19. If applicable, exend metrics to match years in program & extend formulas"]
[]
["4) Send pro forma to the GME Office (Glenda Inabinet or designee) to complete the blue cells"]
[]
["Next, go to the GME Support Calculator tab:"]
["1)Populate the gold cell in B2 with the current number of residents in the program. In rows 4 & 5, fill out the total # of residents for each year for \"approved\" & \"filled\"."]
[]
["2)Check beside the dark gold cell in M7 that the salary benchmark looks correct for the Program Director"]
[]
["3) In rows 10 and 13, check the approved and filled resident count number looks correct for each year."]
[]
["4)The information in the dark gold boxes at the bottom will auto populate into the GME pro forma. Do not adjust. "]

{"sheet":"GME Pro Forma","index":1,"n_rows":44,"n_cols":7,"rows_kept":44,"cut":false,"hidden":false,"merged":[[10,2,10,6],[16,2,17,2],[16,3,17,3],[16,4,17,4],[0,2,0,6],[6,2,6,6],[7,2,9,2],[7,3,9,3],[7,4,9,4],[7,5,9,5],[7,6,9,6],[16,5,17,5],[16,6,17,6]]}
[null,null,"Metrics"]
[null,null,"Metric","Current","Year 1","Year 2","Year 3"]
["Department",null,"Procedure volume"]
[null,null,"Consult volume"]
["Division",null,"Outpatient volume"]
[null,null,"Other service volume"]
["Program Director"]
[null,null,"Incremental Increase in Contribution Margin",0,0,0,0]
["Business Manager"]
[]
["ACGME Approved"]
[]
["Program Director Degree"]
[]
["Program Director Benchmark"]
[]
[null,null,"Year 1","Year 2","Year 3"]
[]
["FTE"]
["Increased CM",null,{"$f":"E8","v":0},{"$f":"F8","v":0},{"$f":"G8","v":0},{"$f":"H8","v":0},0]
["Other revenue",null,0,0,0,0,0]
["Total Revenue/Savings",null,{"$f":"C20+C21","v":0},{"$f":"D20+D21","v":0},{"$f":"E20+E21","v":0},{"$f":"F20+F21","v":0},0]
[]
["Expenses","Percentile"]
["Salary/Fringe"]
["    Resident Salary"]
["    Fringe",0.37,{"$f":"C26*0.37","v":0},{"$f":"D26*0.37","v":0},0,0,0]
["GME Benefits/Expenses"]
["    Professional liability"]
["    Parking"]
["    Wellness Center"]
["    DHEC fee"]
["    Meals"]
["    Cell Phone"]
["Operating Expenses"]
["    ACGME Annual/Application Fee"]
["    NRMP Fee"]
["    GME Funds Flow Resident",null,{"$f":"'GME Support Calculator'!C19","v":0},{"$f":"'GME Support Calculator'!D19","v":0},{"$f":"'GME Support Calculator'!E19","v":0},{"$f":"'GME Support Calculator'!F19","v":0},{"$f":"'GME Support Calculator'!G19","v":0}]
["    GME Funds Flow PD",null,{"$f":"'GME Support Calculator'!C20","v":0},{"$f":"'GME Support Calculator'!D20","v":0},{"$f":"'GME Support Calculator'!E20","v":0},{"$f":"'GME Support Calculator'!F20","v":0},{"$f":"'GME Support Calculator'!G20","v":0}]
["    GME Funds Flow PC",null,{"$f":"'GME Support Calculator'!C21","v":0},{"$f":"'GME Support Calculator'!D21","v":0},{"$f":"'GME Support Calculator'!E21","v":0},{"$f":"'GME Support Calculator'!F21","v":0},{"$f":"'GME Support Calculator'!G21","v":0}]
["    GME Funds Flow other",null,0,0,0,0,0]
["Total Expenses",null,{"$f":"SUM(C26:C41)","v":0},{"$f":"SUM(D26:D41)","v":0},0,{"$f":"SUM(F26:F41)","v":0},0]
[]
["P(L)",null,{"$f":"C22-C42","v":0},{"$f":"D22-D42","v":0},0,{"$f":"F22-F42","v":0},0]

{"sheet":"GME Support Calculator","index":2,"n_rows":22,"n_cols":15,"rows_kept":22,"cut":false,"hidden":false,"merged":[[19,11,20,11]]}
["GME Residents","BASE YEAR","Year 1","Year 2","Year 3","Year 4","Year 5 ","Year 6"]
["Current Resident Count"]
["Increase in Resident Count",null,null,null,null,null,null,{"$f":"'GME Pro Forma'!H19","v":0}]
["Filled Slots"]
["Approved Slots"]
[null,null,null,null,null,null,null,null,null,null,null,"Program Director FTE input"]
[null,null,null,null,null,null,null,null,null,null,null,"Program Director Salary:",{"$f":"SUMIFS('Data for Drop Down'!$H$3:$H$773,'Data for Drop Down'!$B$3:$B$773,'GME Pro Forma'!A14,'Data for Drop Down'!$F$3:$F$773,'GME Pro Forma'!A16)","v":0},"Assoc Prof Median of ",{"$f":"'GME Pro Forma'!$A$16","v":0}]
["TOTAL Cost",null,null,null,null,null,null,null,null,null,null,"PD FTE:",0.1]
[null,"BASE YEAR","Year 1","Year 2","Year 3","Year 4","Year 5","Year 6",null,null,null,"For every x residents:",5]
["GME Resident Filled Count",{"$f":"B4","v":0},0,0,{"$f":"E4","v":0},0,0,0,{"$f":"I4","v":0},0,null,"Minimum FTE Commitment:",0.1]
["Resident Stipend",0,{"$f":"IF(C10>0,$L$22*(C10-B10),0)","v":0},{"$f":"IF(D10>0,$L$22*(D10-$B$10),0)","v":0},{"$f":"IF(E10>0,$L$22*(E10-$B$10),0)","v":0},0,0,0,0,0,null,"Fringe Rate",0.25]
[null,"BASE YEAR","Year 1","Year 2","Year 3","Year 4","Year 5","Year 6"]
["GME Resident Approved Count",{"$f":"B5","v":0},{"$f":"IF(C5>0,MAX($B$5:$J$5),0)","v":0},{"$f":"IF(D5>0,MAX($B$5:$J$5),0)","v":0},{"$f":"IF(E5>0,MAX($B$5:$J$5),0)","v":0},0,0,0,0,0,null,"Program Coordinator FTE input"]
["PD Stipend",{"$f":"(IF(B13>0,MAX($M$10,ROUNDUP(B13/$M$9,0)),0)*$M$8)*$M$7*(1+$M$11)","v":0},{"$f":"(IF(C13>0,MAX($M$10,ROUNDUP(C13/$M$9,0)),0)*$M$8)*$M$7*(1+$M$11)","v":0},{"$f":"(IF(D13>0,MAX($M$10,ROUNDUP(D13/$M$9,0)),0)*$M$8)*$M$7*(1+$M$11)","v":0},{"$f":"(IF(E13>0,MAX($M$10,ROUNDUP(E13/$M$9,0)),0)*$M$8)*$M$7*(1+$M$11)","v":0},0,0,0,null,null,null,null,"FTE Steps:",0.2]
["PC Stipend",{"$f":"(IF(B13>0,MAX($N$16,ROUNDUP(B13/$N$15,0)),0)*$N$14)*$N$17*(1+$N$18)","v":0},{"$f":"(IF(C13>0,MAX($N$16,ROUNDUP(C13/$N$15,0)),0)*$N$14)*$N$17*(1+$N$18)","v":0},{"$f":"(IF(D13>0,MAX($N$16,ROUNDUP(D13/$N$15,0)),0)*$N$14)*$N$17*(1+$N$18)","v":0},{"$f":"(IF(E13>0,MAX($N$16,ROUNDUP(E13/$N$15,0)),0)*$N$14)*$N$17*(1+$N$18)","v":0},0,0,0,0,0,null,null,"For every x residents:",6]
[null,null,null,null,null,null,null,null,null,null,null,null,"Minimum FTE Commitment:",0.2]
["Incremental New Cost [FOR PRO FORMA]",null,null,null,null,null,null,null,null,null,null,null,"Prog Coordinator Comp:",52910]
[null,"BASE YEAR","Year 1","Year 2","Year 3","Year 4","Year 5","Year 6",null,null,null,null,"Staff Fringe Rate:",0.34]
["Resident Stipend",{"$f":"B11","v":0},{"$f":"C11","v":0},0,0,0,{"$f":"G11","v":0},0,0,0]
["PD Stipend",{"$f":"B14","v":0},{"$f":"IF(AND($B$2>0,C14>0),C14-$B$14,C14)","v":0},{"$f":"IF(AND($B$2>0,D14>0),D14-$B$14,D14)","v":0},{"$f":"IF(AND($B$2>0,E14>0),E14-$B$14,E14)","v":0},0,0,0,0,0,null,"Per Resident Stipend"]
["PC Stipend",{"$f":"B15","v":0},{"$f":"IF(AND($B$2>0,C15>0),C15-$B$15,C15)","v":0},{"$f":"IF(AND($B$2>0,D15>0),D15-$B$15,D15)","v":0},0,0,0,0,0,0]
[null,null,null,null,null,null,null,null,null,null,null,4100]

{"sheet":"Data for Drop Down","index":3,"n_rows":409,"n_cols":11,"rows_kept":409,"cut":false,"hidden":true,"merged":[]}
[null,null,null,null,null,"UPDATED AS OF 2/7/22",null,20]
["Department","Degree","Department ",null,"Division","Specialty / Benchmark","Rank","50th %tile",null,"Lists","Other"]
["Basic Science","M.D. or Equivalent","Basic Science",null,null,"Anatomy","Associate Professor",129255,null,"Department","Yes"]
["Basic Science","M.D. or Equivalent","Basic Science",null,null,"Molecular & Cellular Biology","Associate Professor",140000,null,"Anesthesia","No"]
["Basic Science","M.D. or Equivalent","Basic Science",null,null,"Biochemistry","Associate Professor",140949,null,"Dermatology"]
["Basic Science","M.D. or Equivalent","Basic Science",null,null,"Microbiology","Associate Professor",143580,null,"Emergency Medicine"]
["Basic Science","M.D. or Equivalent","Basic Science",null,null,"Pharmacology","Associate Professor",132024,null,"Family Medicine"]
["Basic Science","M.D. or Equivalent","Basic Science",null,null,"Physiology","Associate Professor",131634,null,"Medicine"]
["Basic Science","M.D. or Equivalent","Basic Science",null,null,"Genetics","Associate Professor",184718,null,"Neurology"]
["Basic Science","M.D. or Equivalent","Basic Science",null,null,"Research Associate Basic Sciences","Associate Professor",157476,null,"Neurosurgery"]
["Medicine - GIM","M.D. or Equivalent","Medicine"," GIM",null,"General Internal Medicine","Associate Professor",244189,null,"OB GYN"]
["Medicine - Gastro","M.D. or Equivalent","Medicine"," Gastro",null,"Gastroenterology-Med.","Associate Professor",385604,null,"Ophthamology"]
["Medicine - Pulmonary","M.D. or Equivalent","Medicine"," Pulmonary",null,"Critical/Intensive Care-Med.","Associate Professor",353113,null,"Orthopaedics"]
["Medicine - Endo","M.D. or Equivalent","Medicine"," Endo",null,"Endocrinology-Med.","Associate Professor",215367,null,"Otolaryngology"]
["Medicine - GIM","M.D. or Equivalent","Medicine"," GIM",null,"Geriatrics-Med.","Associate Professor",226716,null,"Pathology & Lab Medicine"]
["Medicine - HemOnc","M.D. or Equivalent","Medicine"," HemOnc",null,"Hematology/Oncology-Med.","Associate Professor",310000,null,"Pediatrics"]
["Medicine - ID","M.D. or Equivalent","Medicine"," ID",null,"Infectious Disease-Med.","Associate Professor",216817,null,"Psychiatry"]
["Medicine - Nephr","M.D. or Equivalent","Medicine"," Nephr",null,"Nephrology-Med.","Associate Professor",265452,null,"Radiation Oncology"]
["Medicine - Rheumatology","M.D. or Equivalent","Medicine"," Rheumatology",null,"Rheumatology-Med.","Associate Professor",233499,null,"Radiology"]
["Medicine - Pulmonary","M.D. or Equivalent","Medicine"," Pulmonary",null,"Pulmonary-Med.","Associate Professor",294695,null,"Surgery"]
["Medicine - GIM","M.D. or Equivalent","Medicine"," GIM",null,"Allergy/Immunology-Med.","Associate Professor",236748,null,"Urology"]
["Medicine - Other","M.D. or Equivalent","Medicine"," Other",null,"Research Associate Medicine","Associate Professor",281824]
["Neurology","M.D. or Equivalent","Neurology",null,null,"Neurology","Associate Professor",251559,null,"Medicine Division"]
["Ophthalmology","M.D. or Equivalent","Ophthalmology",null,null,"Ophthalmology","Associate Professor",333828,null,"Cardiology"]
["Otolaryngology","M.D. or Equivalent","Otolaryngology",null,null,"Otolaryngology","Associate Professor",425514,null,"Endocrinology"]
["Pediatrics","M.D. or Equivalent","Pediatrics",null,null,"General Pediatrics","Associate Professor",201603,null,"Gastro"]
["Pediatrics","M.D. or Equivalent","Pediatrics",null,null,"Neonatology","Associate Professor",302244,null,"GIM"]
["Pediatrics","M.D. or Equivalent","Pediatrics",null,null,"Pediatric Cardiology","Associate Professor",295771,null,"Hem Onc"]
["Psychiatry","M.D. or Equivalent","Psychiatry",null,null,"Psychiatry: Child & Adolescent","Associate Professor",249549,null,"ID"]
["Pediatrics","M.D. or Equivalent","Pediatrics",null,null,"Critical/Intensive Care-Peds.","Associate Professor",300541,null,"Neph "]
["Pediatrics","M.D. or Equivalent","Pediatrics",null,null,"Emergency Medicine-Peds.","Associate Professor",264879,null,"Pulmonary"]
["Pediatrics","M.D. or Equivalent","Pediatrics",null,null,"Endocrinology-Peds.","Associate Professor",191808,null,"Rheumatology"]
["Pediatrics","M.D. or Equivalent","Pediatrics",null,null,"Hematology/Oncology-Peds.","Associate Professor",224634,null,"Other"]
["Pediatrics","M.D. or Equivalent","Pediatrics",null,null,"Infectious Disease-Peds.","Associate Professor",187376]
["Pediatrics","M.D. or Equivalent","Pediatrics",null,null,"Pulmonary-Peds.","Associate Professor",226165,null,"Degree"]
["Pediatrics","M.D. or Equivalent","Pediatrics",null,null,"Rheumatology-Peds.","Associate Professor",200552,null,"M.D. and Ph.D."]
["Pediatrics","M.D. or Equivalent","Pediatrics",null,null,"Allergy/Immunology-Peds.","Associate Professor",212465,null,"M.D. or Equivalent"]
["Pediatrics","M.D. or Equivalent","Pediatrics",null,null,"Research Associate Pediatrics","Associate Professor",213605,null,"Non-Doctoral"]
["Orthopedics","M.D. or Equivalent","Orthopedics",null,null,"Physical Medicine & Rehabilitation","Associate Professor",270781,null,"Ph.D. or Research Associate Doctoral"]
["Family Medicine","M.D. or Equivalent","Family Medicine",null,null,"Preventive Medicine","Associate Professor",219839]
["Radiation Oncology","M.D. or Equivalent","Radiation Oncology",null,null,"Radiation Oncology","Associate Professor",463107]
["Emergency Medicine","M.D. or Equivalent","Emergency Medicine",null,null,"Emergency Medicine","Associate Professor",324966]
["Family Medicine","M.D. or Equivalent","Family Medicine",null,null,"Community Health","Associate Professor",173750]
["Surgery","M.D. or Equivalent","Surgery",null,null,"General Surgery","Associate Professor",416334]
["Neurosurgery","M.D. or Equivalent","Neurosurgery",null,null,"Neurosurgery","Associate Professor",706156]
["Surgery","M.D. or Equivalent","Surgery",null,null,"Plastic Surgery","Associate Professor",521300]
["Surgery","M.D. or Equivalent","Surgery",null,null,"Thoracic & Cardiovascular Surgery","Associate Professor",653868]
["Urology","M.D. or Equivalent","Urology",null,null,"Urology","Associate Professor",440029]
["Surgery","M.D. or Equivalent","Surgery",null,null,"Vascular Surgery","Associate Professor",490644]
["Pediatrics","M.D. or Equivalent","Pediatrics",null,null,"Pediatric Surgery","Associate Professor",555790]
["Surgery","M.D. or Equivalent","Surgery",null,null,"Transplant Surgery","Associate Professor",487907]
["Clinical Sciences","M.D. or Equivalent","Clinical Sciences",null,null,"Research Associate Clinical Sciences","Associate Professor",234350]
["Radiology","M.D. or Equivalent","Radiology",null,null,"Research Associate Radiology","Associate Professor",432016]
["Surgery","M.D. or Equivalent","Surgery",null,null,"Research Associate Surgery","Associate Professor",393054]
["Basic Science","M.D. or Equivalent","Basic Science",null,null,"Biostatistics","Associate Professor",{"$error":"#N/A"}]
["OBGYN","M.D. or Equivalent","OBGYN",null,null,"OB/GYN: Maternal & Fetal","Associate Professor",443184]
["OBGYN","M.D. or Equivalent","OBGYN",null,null,"OB/GYN: Gynecologic Oncology","Associate Professor",401658]
["OBGYN","M.D. or Equivalent","OBGYN",null,null,"OB/GYN: Reproductive Endocrinology","Associate Professor",443222]
["OBGYN","M.D. or Equivalent","OBGYN",null,null,"OB/GYN: General","Associate Professor",313420]
["OBGYN","M.D. or Equivalent","OBGYN",null,null,"OB/GYN: Research Associate OB/GYN","Associate Professor",320165]
["Pathology","M.D. or Equivalent","Pathology",null,null,"Pathology: Anatomic","Associate Professor",281615]
["Pathology","M.D. or Equivalent","Pathology",null,null,"Pathology: Clinical","Associate Professor",272356]
["Pathology","M.D. or Equivalent","Pathology",null,null,"Pathology: Research Associate Pathology","Associate Professor",250124]
["Pediatrics","M.D. or Equivalent","Pediatrics",null,null,"Gastroenterology-Peds.","Associate Professor",249998]
["Pediatrics","M.D. or Equivalent","Pediatrics",null,null,"Genetics-Peds.","Associate Professor",199400]
["Pediatrics","M.D. or Equivalent","Pediatrics",null,null,"Nephrology-Peds.","Associate Professor",211717]
["Pediatrics","M.D. or Equivalent","Pediatrics",null,null,"Neurology-Peds.","Associate Professor",240208]
["Basic Science","M.D. or Equivalent","Basic Science",null,null,"Neurosciences","Associate Professor",{"$error":"#N/A"}]
["Basic Science","M.D. or Equivalent","Basic Science",null,null,"Bioethics/Medical Humanities","Associate Professor",{"$error":"#N/A"}]
["Basic Science","M.D. or Equivalent","Basic Science",null,null,"Biomedical Informatics","Associate Professor",{"$error":"#N/A"}]
["Dermatology","M.D. or Equivalent","Dermatology",null,null,"Dermatology (excluding Mohs Surgery)","Associate Professor",358910]
["Dermatology","M.D. or Equivalent","Dermatology",null,null,"Dermatology: Mohs Surgery","Associate Professor",648708]
["Radiology","M.D. or Equivalent","Radiology",null,null,"Diagnostic Radiology: Interventional","Associate Professor",475000]
["Radiology","M.D. or Equivalent","Radiology",null,null,"Diagnostic Radiology: Non-interventional","Associate Professor",427393]
["Radiology","M.D. or Equivalent","Radiology",null,null,"Nuclear Medicine","Associate Professor",397526]
["Surgery","M.D. or Equivalent","Surgery",null,null,"Trauma/Critical Care Surgery","Associate Professor",459558]
["Anesthesiology","M.D. or Equivalent","Anesthesiology",null,null,"Anesthesiology: General","Associate Professor",428654]
["Anesthesiology","M.D. or Equivalent","Anesthesiology",null,null,"Anesthesiology: Pain Management","Associate Professor",411804]
["Anesthesiology","M.D. or Equivalent","Anesthesiology",null,null,"Anesthesiology: Pediatric","Associate Professor",453828]
["Medicine - Cardiology","M.D. or Equivalent","Medicine - Cardiology"," Cardiology",null,"Cardiology: Invasive Interventional-Med.","Associate Professor",450903]
["Medicine - Cardiology","M.D. or Equivalent","Medicine - Cardiology"," Cardiology",null,"Cardiology: Invasive Non-interventional-Med. ","Associate Professor",419746]
["Medicine - Cardiology","M.D. or Equivalent","Medicine - Cardiology"," Cardiology",null,"Cardiology: Non-invasive-Med.","Associate Professor",366738]
["Medicine - GIM","M.D. or Equivalent","Medicine - GIM"," GIM",null,"Hospital Medicine","Associate Professor",263435]
["Pediatrics","M.D. or Equivalent","Pediatrics",null,null,"Adolescent Medicine","Associate Professor",189836]
["Pediatrics","M.D. or Equivalent","Pediatrics",null,null,"Hospital Medicine-Peds. ","Associate Professor",210578]
["Surgery","M.D. or Equivalent","Surgery",null,null,"Surgical Oncology","Associate Professor",394850]
["Psychiatry","M.D. or Equivalent","Psychiatry",null,null,"Psychiatry: General","Associate Professor",245356]
["Psychiatry","M.D. or Equivalent","Psychiatry",null,null,"Psychiatry: Research Associate ","Associate Professor",251103]
["Family Medicine","M.D. or Equivalent","Family Medicine",null,null,"Family Medicine: General","Associate Professor",231522]
["Family Medicine","M.D. or Equivalent","Family Medicine",null,null,"Family Medicine: Sports Medicine","Associate Professor",255397]
["Family Medicine","M.D. or Equivalent","Family Medicine",null,null,"Family Medicine: Research Associate","Associate Professor",214519]
["Orthopedics","M.D. or Equivalent","Orthopedics",null,null,"Orthopaedic Surgery: General","Associate Professor",610589]
["Orthopedics","M.D. or Equivalent","Orthopedics",null,null,"Orthopaedic Surgery: Sports Medicine","Associate Professor",576813]
["Orthopedics","M.D. or Equivalent","Orthopedics",null,null,"Orthopaedic Surgery: Research Associate","Associate Professor",578408]
["Pediatrics","M.D. or Equivalent","Pediatrics",null,null,"Psychology-Peds.","Associate Professor",187000]
["Psychiatry","M.D. or Equivalent","Psychiatry",null,null,"Psychiatry: Psychology","Associate Professor",0]
["Basic Science","Ph.D. or Research Associate Doctoral","Basic Science",null,null,"Anatomy","Associate Professor",120085]
["Basic Science","Ph.D. or Research Associate Doctoral","Basic Science",null,null,"Molecular & Cellular Biology","Associate Professor",134970]
["Basic Science","Ph.D. or Research Associate Doctoral","Basic Science",null,null,"Biochemistry","Associate Professor",129285]
["Basic Science","Ph.D. or Research Associate Doctoral","Basic Science",null,null,"Microbiology","Associate Professor",133087]
["Basic Science","Ph.D. or Research Associate Doctoral","Basic Science",null,null,"Pharmacology","Associate Professor",130828]
["Basic Science","Ph.D. or Research Associate Doctoral","Basic Science",null,null,"Physiology","Associate Professor",130000]
["Basic Science","Ph.D. or Research Associate Doctoral","Basic Science",null,null,"Genetics","Associate Professor",144528]
["Basic Science","Ph.D. or Research Associate Doctoral","Basic Science",null,null,"Research Associate Basic Sciences","Associate Professor",142511]
["Medicine - GIM","Ph.D. or Research Associate Doctoral","Medicine","GIM",null,"General Internal Medicine","Associate Professor",145250]
["Medicine - GI","Ph.D. or Research Associate Doctoral","Medicine","GI",null,"Gastroenterology-Med.","Associate Professor",133174]
["Emergency Medicine","Ph.D. or Research Associate Doctoral","Emergency Medicine",null,null,"Critical/Intensive Care-Med.","Associate Professor",0]
["Medicine - Endo","Ph.D. or Research Associate Doctoral","Medicine","Endo",null,"Endocrinology-Med.","Associate Professor",130456]
["Medicine - GIM","Ph.D. or Research Associate Doctoral","Medicine","GIM",null,"Geriatrics-Med.","Associate Professor",143734]
["Medicine - HemOnc","Ph.D. or Research Associate Doctoral","Medicine","HemOnc",null,"Hematology/Oncology-Med.","Associate Professor",150006]
["Medicine - ID","Ph.D. or Research Associate Doctoral","Medicine","ID",null,"Infectious Disease-Med.","Associate Professor",131082]
["Medicine - Nephr","Ph.D. or Research Associate Doctoral","Medicine","Nephr",null,"Nephrology-Med.","Associate Professor",129888]
["Medicine - Rheumatology","Ph.D. or Research Associate Doctoral","Medicine","Rheumatology",null,"Rheumatology-Med.","Associate Professor",122980]
["Medicine - Pulmonary","Ph.D. or Research Associate Doctoral","Medicine","Pulmonary",null,"Pulmonary-Med.","Associate Professor",129268]
["Medicine - GIM","Ph.D. or Research Associate Doctoral","Medicine","GIM",null,"Allergy/Immunology-Med.","Associate Professor",134876]
["Medicine - Other","Ph.D. or Research Associate Doctoral","Medicine","Other",null,"Research Associate Medicine","Associate Professor",150926]
["Neurology","Ph.D. or Research Associate Doctoral","Neurology",null,null,"Neurology","Associate Professor",148766]
["Ophthalmology","Ph.D. or Research Associate Doctoral","Ophthalmology",null,null,"Ophthalmology","Associate Professor",143360]
["Otolaryngology","Ph.D. or Research Associate Doctoral","Otolaryngology",null,null,"Otolaryngology","Associate Professor",131705]
["Pediatrics","Ph.D. or Research Associate Doctoral","Pediatrics",null,null,"General Pediatrics","Associate Professor",136156]
["Pediatrics","Ph.D. or Research Associate Doctoral","Pediatrics",null,null,"Neonatology","Associate Professor",134320]
["Pediatrics","Ph.D. or Research Associate Doctoral","Pediatrics",null,null,"Pediatric Cardiology","Associate Professor",144560]
["Psychiatry","Ph.D. or Research Associate Doctoral","Psychiatry",null,null,"Psychiatry: Child & Adolescent","Associate Professor",133912]
["Pediatrics","Ph.D. or Research Associate Doctoral","Pediatrics",null,null,"Critical/Intensive Care-Peds.","Associate Professor",0]
["Pediatrics","Ph.D. or Research Associate Doctoral","Pediatrics",null,null,"Emergency Medicine-Peds.","Associate Professor",0]
["Pediatrics","Ph.D. or Research Associate Doctoral","Pediatrics",null,null,"Endocrinology-Peds.","Associate Professor",123543]
["Pediatrics","Ph.D. or Research Associate Doctoral","Pediatrics",null,null,"Hematology/Oncology-Peds.","Associate Professor",136729]
["Pediatrics","Ph.D. or Research Associate Doctoral","Pediatrics",null,null,"Infectious Disease-Peds.","Associate Professor",136680]
["Pediatrics","Ph.D. or Research Associate Doctoral","Pediatrics",null,null,"Pulmonary-Peds.","Associate Professor",150530]
["Pediatrics","Ph.D. or Research Associate Doctoral","Pediatrics",null,null,"Rheumatology-Peds.","Associate Professor",152880]
["Pediatrics","Ph.D. or Research Associate Doctoral","Pediatrics",null,null,"Allergy/Immunology-Peds.","Associate Professor",140676]
["Pediatrics","Ph.D. or Research Associate Doctoral","Pediatrics",null,null,"Research Associate Pediatrics","Associate Professor",136427]
["Orthopedics","Ph.D. or Research Associate Doctoral","Orthopedics",null,null,"Physical Medicine & Rehabilitation","Associate Professor",127308]
["Family Medicine","Ph.D. or Research Associate Doctoral","Family Medicine",null,null,"Preventive Medicine","Associate Professor",151964]
["Radiation Oncology","Ph.D. or Research Associate Doctoral","Radiation Oncology",null,null,"Radiation Oncology","Associate Professor",215000]
["Family Medicine","Ph.D. or Research Associate Doctoral","Family Medicine",null,null,"Emergency Medicine","Associate Professor",133446]
["Family Medicine","Ph.D. or Research Associate Doctoral","Family Medicine",null,null,"Community Health","Associate Professor",135044]
["Surgery","Ph.D. or Research Associate Doctoral","Surgery",null,null,"General Surgery","Associate Professor",129217]
["Neurosurgery","Ph.D. or Research Associate Doctoral","Neurosurgery",null,null,"Neurosurgery","Associate Professor",149050]
["Surgery","Ph.D. or Research Associate Doctoral","Surgery",null,null,"Plastic Surgery","Associate Professor",118087]
["Surgery","Ph.D. or Research Associate Doctoral","Surgery",null,null,"Thoracic & Cardiovascular Surgery","Associate Professor",135000]
["Urology","Ph.D. or Research Associate Doctoral","Urology",null,null,"Urology","Associate Professor",150960]
["Surgery","Ph.D. or Research Associate Doctoral","Surgery",null,null,"Vascular Surgery","Associate Professor",127322]
["Pediatrics","Ph.D. or Research Associate Doctoral","Pediatrics",null,null,"Pediatric Surgery","Associate Professor",133245]
["Surgery","Ph.D. or Research Associate Doctoral","Surgery",null,null,"Transplant Surgery","Associate Professor",135279]
["Clinical Sciences","Ph.D. or Research Associate Doctoral","Clinical Sciences",null,null,"Research Associate Clinical Sciences","Associate Professor",144699]
["Radiology","Ph.D. or Research Associate Doctoral","Radiology",null,null,"Research Associate Radiology","Associate Professor",156605]
["Surgery","Ph.D. or Research Associate Doctoral","Surgery",null,null,"Research Associate Surgery","Associate Professor",140130]
["Basic Science","Ph.D. or Research Associate Doctoral","Basic Science",null,null,"Biostatistics","Associate Professor",152055]
["OBGYN","Ph.D. or Research Associate Doctoral","OBGYN",null,null,"OB/GYN: Maternal & Fetal","Associate Professor",135394]
["OBGYN","Ph.D. or Research Associate Doctoral","OBGYN",null,null,"OB/GYN: Gynecologic Oncology","Associate Professor",126907]
["OBGYN","Ph.D. or Research Associate Doctoral","OBGYN",null,null,"OB/GYN: Reproductive Endocrinology","Associate Professor",184989]
["OBGYN","Ph.D. or Research Associate Doctoral","OBGYN",null,null,"OB/GYN: General","Associate Professor",130275]
["OBGYN","Ph.D. or Research Associate Doctoral","OBGYN",null,null,"OB/GYN: Research Associate OB/GYN","Associate Professor",153699]
["Pathology","Ph.D. or Research Associate Doctoral","Pathology",null,null,"Pathology: Anatomic","Associate Professor",165000]
["Pathology","Ph.D. or Research Associate Doctoral","Pathology",null,null,"Pathology: Clinical","Associate Professor",185608]
["Pathology","Ph.D. or Research Associate Doctoral","Pathology",null,null,"Pathology: Research Associate Pathology","Associate Professor",141101]
["Pediatrics","Ph.D. or Research Associate Doctoral","Pediatrics",null,null,"Gastroenterology-Peds.","Associate Professor",137750]
["Pediatrics","Ph.D. or Research Associate Doctoral","Pediatrics",null,null,"Genetics-Peds.","Associate Professor",159006]
["Pediatrics","Ph.D. or Research Associate Doctoral","Pediatrics",null,null,"Nephrology-Peds.","Associate Professor",0]
["Pediatrics","Ph.D. or Research Associate Doctoral","Pediatrics",null,null,"Neurology-Peds.","Associate Professor",132916]
["Basic Science","Ph.D. or Research Associate Doctoral","Basic Science",null,null,"Neurosciences","Associate Professor",132211]
["Basic Science","Ph.D. or Research Associate Doctoral","Basic Science",null,null,"Bioethics/Medical Humanities","Associate Professor",126763]
["Basic Science","Ph.D. or Research Associate Doctoral","Basic Science",null,null,"Biomedical Informatics","Associate Professor",164124]
["Dermatology","Ph.D. or Research Associate Doctoral","Dermatology",null,null,"Dermatology (excluding Mohs Surgery)","Associate Professor",139890]
["Dermatology","Ph.D. or Research Associate Doctoral","Dermatology",null,null,"Dermatology: Mohs Surgery","Associate Professor",0]
["Radiology","Ph.D. or Research Associate Doctoral","Radiology",null,null,"Diagnostic Radiology: Interventional","Associate Professor",0]
["Radiology","Ph.D. or Research Associate Doctoral","Radiology",null,null,"Diagnostic Radiology: Non-interventional","Associate Professor",150391]
["Radiology","Ph.D. or Research Associate Doctoral","Radiology",null,null,"Nuclear Medicine","Associate Professor",130255]
["Surgery","Ph.D. or Research Associate Doctoral","Surgery",null,null,"Trauma/Critical Care Surgery","Associate Professor",0]
["Anesthesiology","Ph.D. or Research Associate Doctoral","Anesthesiology",null,null,"Anesthesiology: General","Associate Professor",140100]
["Anesthesiology","Ph.D. or Research Associate Doctoral","Anesthesiology",null,null,"Anesthesiology: Pain Management","Associate Professor",157877]
["Anesthesiology","Ph.D. or Research Associate Doctoral","Anesthesiology",null,null,"Anesthesiology: Pediatric","Associate Professor",0]
["Medicine - Cardiology","Ph.D. or Research Associate Doctoral","Medicine","Cardiology",null,"Cardiology: Invasive Interventional-Med.","Associate Professor",120000]
["Medicine - Cardiology","Ph.D. or Research Associate Doctoral","Medicine","Cardiology",null,"Cardiology: Invasive Non-interventional-Med. ","Associate Professor",0]
["Medicine - Cardiology","Ph.D. or Research Associate Doctoral","Medicine","Cardiology",null,"Cardiology: Non-invasive-Med.","Associate Professor",122733]
["Medicine - GIM","Ph.D. or Research Associate Doctoral","Medicine","GIM",null,"Hospital Medicine","Associate Professor",0]
["Pediatrics","Ph.D. or Research Associate Doctoral","Pediatrics",null,null,"Adolescent Medicine","Associate Professor",126566]
["Pediatrics","Ph.D. or Research Associate Doctoral","Pediatrics",null,null,"Hospital Medicine-Peds. ","Associate Professor",0]
["Surgery","Ph.D. or Research Associate Doctoral","Surgery",null,null,"Surgical Oncology","Associate Professor",130704]
["Psychiatry","Ph.D. or Research Associate Doctoral","Psychiatry",null,null,"Psychiatry: General","Associate Professor",140000]
["Psychiatry","Ph.D. or Research Associate Doctoral","Psychiatry",null,null,"Psychiatry: Research Associate ","Associate Professor",139817]
["Family Medicine","Ph.D. or Research Associate Doctoral","Family Medicine",null,null,"Family Medicine: General","Associate Professor",128162]
["Family Medicine","Ph.D. or Research Associate Doctoral","Family Medicine",null,null,"Family Medicine: Sports Medicine","Associate Professor",0]
["Family Medicine","Ph.D. or Research Associate Doctoral","Family Medicine",null,null,"Family Medicine: Research Associate","Associate Professor",143306]
["Orthopedics","Ph.D. or Research Associate Doctoral","Orthopedics",null,null,"Orthopaedic Surgery: General","Associate Professor",140101]
["Orthopedics","Ph.D. or Research Associate Doctoral","Orthopedics",null,null,"Orthopaedic Surgery: Sports Medicine","Associate Professor",0]
["Orthopedics","Ph.D. or Research Associate Doctoral","Orthopedics",null,null,"Orthopaedic Surgery: Research Associate","Associate Professor",149568]
["Pediatrics","Ph.D. or Research Associate Doctoral","Pediatrics",null,null,"Psychology-Peds.","Associate Professor",124007]
["Psychiatry","Ph.D. or Research Associate Doctoral","Psychiatry",null,null,"Psychiatry: Psychology","Associate Professor",139054]
["Basic Science","M.D. and Ph.D.","Basic Science",null,null,"Anatomy","Associate Professor",129255]
["Basic Science","M.D. and Ph.D.","Basic Science",null,null,"Molecular & Cellular Biology","Associate Professor",140000]
["Basic Science","M.D. and Ph.D.","Basic Science",null,null,"Biochemistry","Associate Professor",140949]
["Basic Science","M.D. and Ph.D.","Basic Science",null,null,"Microbiology","Associate Professor",143580]
["Basic Science","M.D. and Ph.D.","Basic Science",null,null,"Pharmacology","Associate Professor",132024]
["Basic Science","M.D. and Ph.D.","Basic Science",null,null,"Physiology","Associate Professor",131634]
["Basic Science","M.D. and Ph.D.","Basic Science",null,null,"Genetics","Associate Professor",184718]
["Basic Science","M.D. and Ph.D.","Basic Science",null,null,"Research Associate Basic Sciences","Associate Professor",157476]
["Medicine - GIM","M.D. and Ph.D.","Medicine","GIM",null,"General Internal Medicine","Associate Professor",244189]
["Medicine - GI","M.D. and Ph.D.","Medicine","GI",null,"Gastroenterology-Med.","Associate Professor",385604]
["Emergency Medicine","M.D. and Ph.D.","Emergency Medicine",null,null,"Critical/Intensive Care-Med.","Associate Professor",353113]
["Medicine - Endo","M.D. and Ph.D.","Medicine","Endo",null,"Endocrinology-Med.","Associate Professor",215367]
["Medicine - GIM","M.D. and Ph.D.","Medicine","GIM",null,"Geriatrics-Med.","Associate Professor",226716]
["Medicine - HemOnc","M.D. and Ph.D.","Medicine","HemOnc",null,"Hematology/Oncology-Med.","Associate Professor",310000]
["Medicine - ID","M.D. and Ph.D.","Medicine","ID",null,"Infectious Disease-Med.","Associate Professor",216817]
["Medicine - Nephr","M.D. and Ph.D.","Medicine","Nephr",null,"Nephrology-Med.","Associate Professor",265452]
["Medicine - Rheumatology","M.D. and Ph.D.","Medicine","Rheumatology",null,"Rheumatology-Med.","Associate Professor",233499]
["Medicine - Pulmonary","M.D. and Ph.D.","Medicine","Pulmonary",null,"Pulmonary-Med.","Associate Professor",294695]
["Medicine - GIM","M.D. and Ph.D.","Medicine","GIM",null,"Allergy/Immunology-Med.","Associate Professor",236748]
["Medicine - Other","M.D. and Ph.D.","Medicine","Other",null,"Research Associate Medicine","Associate Professor",281824]
["Neurology","M.D. and Ph.D.","Neurology",null,null,"Neurology","Associate Professor",251559]
["Ophthalmology","M.D. and Ph.D.","Ophthalmology",null,null,"Ophthalmology","Associate Professor",333828]
["Otolaryngology","M.D. and Ph.D.","Otolaryngology",null,null,"Otolaryngology","Associate Professor",425514]
["Pediatrics","M.D. and Ph.D.","Pediatrics",null,null,"General Pediatrics","Associate Professor",201603]
["Pediatrics","M.D. and Ph.D.","Pediatrics",null,null,"Neonatology","Associate Professor",302244]
["Pediatrics","M.D. and Ph.D.","Pediatrics",null,null,"Pediatric Cardiology","Associate Professor",295771]
["Psychiatry","M.D. and Ph.D.","Psychiatry",null,null,"Psychiatry: Child & Adolescent","Associate Professor",249549]
["Pediatrics","M.D. and Ph.D.","Pediatrics",null,null,"Critical/Intensive Care-Peds.","Associate Professor",300541]
["Pediatrics","M.D. and Ph.D.","Pediatrics",null,null,"Emergency Medicine-Peds.","Associate Professor",264879]
["Pediatrics","M.D. and Ph.D.","Pediatrics",null,null,"Endocrinology-Peds.","Associate Professor",191808]
["Pediatrics","M.D. and Ph.D.","Pediatrics",null,null,"Hematology/Oncology-Peds.","Associate Professor",224634]
["Pediatrics","M.D. and Ph.D.","Pediatrics",null,null,"Infectious Disease-Peds.","Associate Professor",187376]
["Pediatrics","M.D. and Ph.D.","Pediatrics",null,null,"Pulmonary-Peds.","Associate Professor",226165]
["Pediatrics","M.D. and Ph.D.","Pediatrics",null,null,"Rheumatology-Peds.","Associate Professor",200552]
["Pediatrics","M.D. and Ph.D.","Pediatrics",null,null,"Allergy/Immunology-Peds.","Associate Professor",212465]
["Pediatrics","M.D. and Ph.D.","Pediatrics",null,null,"Research Associate Pediatrics","Associate Professor",213605]
["Orthopedics","M.D. and Ph.D.","Orthopedics",null,null,"Physical Medicine & Rehabilitation","Associate Professor",270781]
["Family Medicine","M.D. and Ph.D.","Family Medicine",null,null,"Preventive Medicine","Associate Professor",219839]
["Radiation Oncology","M.D. and Ph.D.","Radiation Oncology",null,null,"Radiation Oncology","Associate Professor",463107]
["Family Medicine","M.D. and Ph.D.","Family Medicine",null,null,"Emergency Medicine","Associate Professor",324966]
["Family Medicine","M.D. and Ph.D.","Family Medicine",null,null,"Community Health","Associate Professor",173750]
["Surgery","M.D. and Ph.D.","Surgery",null,null,"General Surgery","Associate Professor",416334]
["Neurosurgery","M.D. and Ph.D.","Neurosurgery",null,null,"Neurosurgery","Associate Professor",706156]
["Surgery","M.D. and Ph.D.","Surgery",null,null,"Plastic Surgery","Associate Professor",521300]
["Surgery","M.D. and Ph.D.","Surgery",null,null,"Thoracic & Cardiovascular Surgery","Associate Professor",653868]
["Urology","M.D. and Ph.D.","Urology",null,null,"Urology","Associate Professor",440029]
["Surgery","M.D. and Ph.D.","Surgery",null,null,"Vascular Surgery","Associate Professor",490644]
["Pediatrics","M.D. and Ph.D.","Pediatrics",null,null,"Pediatric Surgery","Associate Professor",555790]
["Surgery","M.D. and Ph.D.","Surgery",null,null,"Transplant Surgery","Associate Professor",487907]
["Clinical Sciences","M.D. and Ph.D.","Clinical Sciences",null,null,"Research Associate Clinical Sciences","Associate Professor",234350]
["Radiology","M.D. and Ph.D.","Radiology",null,null,"Research Associate Radiology","Associate Professor",432016]
["Surgery","M.D. and Ph.D.","Surgery",null,null,"Research Associate Surgery","Associate Professor",393054]
["Basic Science","M.D. and Ph.D.","Basic Science",null,null,"Biostatistics","Associate Professor",{"$error":"#N/A"}]
["OBGYN","M.D. and Ph.D.","OBGYN",null,null,"OB/GYN: Maternal & Fetal","Associate Professor",443184]
["OBGYN","M.D. and Ph.D.","OBGYN",null,null,"OB/GYN: Gynecologic Oncology","Associate Professor",401658]
["OBGYN","M.D. and Ph.D.","OBGYN",null,null,"OB/GYN: Reproductive Endocrinology","Associate Professor",443222]
["OBGYN","M.D. and Ph.D.","OBGYN",null,null,"OB/GYN: General","Associate Professor",313420]
["OBGYN","M.D. and Ph.D.","OBGYN",null,null,"OB/GYN: Research Associate OB/GYN","Associate Professor",320165]
["Pathology","M.D. and Ph.D.","Pathology",null,null,"Pathology: Anatomic","Associate Professor",281615]
["Pathology","M.D. and Ph.D.","Pathology",null,null,"Pathology: Clinical","Associate Professor",272356]
["Pathology","M.D. and Ph.D.","Pathology",null,null,"Pathology: Research Associate Pathology","Associate Professor",250124]
["Pediatrics","M.D. and Ph.D.","Pediatrics",null,null,"Gastroenterology-Peds.","Associate Professor",249998]
["Pediatrics","M.D. and Ph.D.","Pediatrics",null,null,"Genetics-Peds.","Associate Professor",199400]
["Pediatrics","M.D. and Ph.D.","Pediatrics",null,null,"Nephrology-Peds.","Associate Professor",211717]
["Pediatrics","M.D. and Ph.D.","Pediatrics",null,null,"Neurology-Peds.","Associate Professor",240208]
["Basic Science","M.D. and Ph.D.","Basic Science",null,null,"Neurosciences","Associate Professor",{"$error":"#N/A"}]
["Basic Science","M.D. and Ph.D.","Basic Science",null,null,"Bioethics/Medical Humanities","Associate Professor",{"$error":"#N/A"}]
["Basic Science","M.D. and Ph.D.","Basic Science",null,null,"Biomedical Informatics","Associate Professor",{"$error":"#N/A"}]
["Dermatology","M.D. and Ph.D.","Dermatology",null,null,"Dermatology (excluding Mohs Surgery)","Associate Professor",358910]
["Dermatology","M.D. and Ph.D.","Dermatology",null,null,"Dermatology: Mohs Surgery","Associate Professor",648708]
["Radiology","M.D. and Ph.D.","Radiology",null,null,"Diagnostic Radiology: Interventional","Associate Professor",475000]
["Radiology","M.D. and Ph.D.","Radiology",null,null,"Diagnostic Radiology: Non-interventional","Associate Professor",427393]
["Radiology","M.D. and Ph.D.","Radiology",null,null,"Nuclear Medicine","Associate Professor",397526]
["Surgery","M.D. and Ph.D.","Surgery",null,null,"Trauma/Critical Care Surgery","Associate Professor",459558]
["Basic Science","M.D. and Ph.D.","Basic Science",null,null,"Anesthesiology: General","Associate Professor",428654]
["Anesthesiology","M.D. and Ph.D.","Anesthesiology",null,null,"Anesthesiology: Pain Management","Associate Professor",411804]
["Anesthesiology","M.D. and Ph.D.","Anesthesiology",null,null,"Anesthesiology: Pediatric","Associate Professor",453828]
["Medicine - Cardiology","M.D. and Ph.D.","Medicine","Cardiology",null,"Cardiology: Invasive Interventional-Med.","Associate Professor",450903]
["Medicine - Cardiology","M.D. and Ph.D.","Medicine","Cardiology",null,"Cardiology: Invasive Non-interventional-Med. ","Associate Professor",419746]
["Medicine - Cardiology","M.D. and Ph.D.","Medicine","Cardiology",null,"Cardiology: Non-invasive-Med.","Associate Professor",366738]
["Medicine - GIM","M.D. and Ph.D.","Medicine","GIM",null,"Hospital Medicine","Associate Professor",263435]
["Pediatrics","M.D. and Ph.D.","Pediatrics",null,null,"Adolescent Medicine","Associate Professor",189836]
["Pediatrics","M.D. and Ph.D.","Pediatrics",null,null,"Hospital Medicine-Peds. ","Associate Professor",210578]
["Surgery","M.D. and Ph.D.","Surgery",null,null,"Surgical Oncology","Associate Professor",394850]
["Psychiatry","M.D. and Ph.D.","Psychiatry",null,null,"Psychiatry: General","Associate Professor",245356]
["Psychiatry","M.D. and Ph.D.","Psychiatry",null,null,"Psychiatry: Research Associate ","Associate Professor",251103]
["Family Medicine","M.D. and Ph.D.","Family Medicine",null,null,"Family Medicine: General","Associate Professor",231522]
["Family Medicine","M.D. and Ph.D.","Family Medicine",null,null,"Family Medicine: Sports Medicine","Associate Professor",255397]
["Family Medicine","M.D. and Ph.D.","Family Medicine",null,null,"Family Medicine: Research Associate","Associate Professor",214519]
["Orthopedics","M.D. and Ph.D.","Orthopedics",null,null,"Orthopaedic Surgery: General","Associate Professor",610589]
["Orthopedics","M.D. and Ph.D.","Orthopedics",null,null,"Orthopaedic Surgery: Sports Medicine","Associate Professor",576813]
["Orthopedics","M.D. and Ph.D.","Orthopedics",null,null,"Orthopaedic Surgery: Research Associate","Associate Professor",578408]
["Pediatrics","M.D. and Ph.D.","Pediatrics",null,null,"Psychology-Peds.","Associate Professor",187000]
["Psychiatry","M.D. and Ph.D.","Psychiatry",null,null,"Psychiatry: Psychology","Associate Professor",0]
["Medicine - Cardiology","M.D. or Equivalent","Medicine","Cardiology",null,"Cardiology: Electrophysiology","Associate Professor",455038.20624640113]
["Dermatology","M.D. or Equivalent","Dermatology",null,null,"Dermatopathology","Associate Professor",451040.58033122896]
["Radiology","M.D. or Equivalent","Radiology",null,null,"Neuroradiology","Associate Professor",384525.53800264775]
["Orthopedics","M.D. or Equivalent","Orthopedics",null,null,"Orthopedic Surgery: Foot / Ankle","Associate Professor",498961.92681972636]
["Orthopedics","M.D. or Equivalent","Orthopedics",null,null,"Orthopedic Surgery: Hand","Associate Professor",593768.43214646028]
["Orthopedics","M.D. or Equivalent","Orthopedics",null,null,"Orthopedic Surgery: Joint","Associate Professor",612906.3607415749]
["Orthopedics","M.D. or Equivalent","Orthopedics",null,null,"Orthopedic Surgery: Oncology","Associate Professor",546529.47787886439]
["Orthopedics","M.D. or Equivalent","Orthopedics",null,null,"Orthopedic Surgery: Pediatric","Associate Professor",536586.7675735557]
["Orthopedics","M.D. or Equivalent","Orthopedics",null,null,"Orthopedic Surgery: Shoulder/Elbow","Associate Professor",654810.69123796094]
["Orthopedics","M.D. or Equivalent","Orthopedics",null,null,"Orthopedic Surgery: Spine","Associate Professor",835172.39230513561]
["Orthopedics","M.D. or Equivalent","Orthopedics",null,null,"Orthopedic Surgery: Trauma","Associate Professor",713613.6345234114]
["Orthopedics","M.D. or Equivalent","Orthopedics",null,null,"Orthopedic (Nonsurgical)","Associate Professor",357466.28990737349]
["Otolaryngology","M.D. or Equivalent","Otolaryngology",null,null,"Otorhinolaryngology: Pediatric","Associate Professor",472593.15097566228]
["Pathology","M.D. or Equivalent","Pathology",null,null,"Pathology: Anatomic-Cytopathology","Associate Professor",292984.37822323502]
["Pathology","M.D. or Equivalent","Pathology",null,null,"Pathology: Hematopathology","Associate Professor",268330.30527734879]
["Pediatrics","M.D. or Equivalent","Pediatrics",null,null,"Pediatrics: Child Development","Associate Professor",192712.26444670389]
["Pediatrics","M.D. or Equivalent","Pediatrics",null,null,"Pediatrics: Dermatology","Associate Professor",330985.47837358661]
["Medicine - Pulmonary","M.D. or Equivalent","Medicine","Pulmonary",null,"Sleep Medicine","Associate Professor",239417.72851725141]
["Surgery","M.D. or Equivalent","Surgery",null,null,"Surgery: Breast","Associate Professor",404350.11509111896]
["Surgery","M.D. or Equivalent","Surgery",null,null,"Surgery: Cardiovascular-Pediatric","Associate Professor",821964.97786547034]
["Surgery","M.D. or Equivalent","Surgery",null,null,"Surgery: Oral","Associate Professor",421919.17619017331]
["Neurosurgery","M.D. or Equivalent","Neurosurgery",null,null,"Neurosurgery - Pediatric","Associate Professor",701085.88118172251]
["OBGYN","M.D. or Equivalent","OBGYN",null,null,"Uro-Gynecology","Associate Professor",365329.42492378107]
["Pediatrics","M.D. or Equivalent","Pediatrics",null,null,"Urology: Pediatric","Associate Professor",531759.35508867167]
["Radiology","M.D. or Equivalent","Radiology",null,null,"Vascular Interventional Radiology","Associate Professor",435270.32885049045]
["Neurology","M.D. or Equivalent","Neurology",null,null,"Neurology: General","Associate Professor",247851.26321925817]
["Neurology","M.D. or Equivalent","Neurology",null,null,"Neurology: Epilepsy/EEG","Associate Professor",253940.93220855764]
["Neurology","M.D. or Equivalent","Neurology",null,null,"Neurology: Neuromuscular","Associate Professor",252993.43067932091]
["Neurology","M.D. or Equivalent","Neurology",null,null,"Neurology:Stroke Medicine","Associate Professor",287256.01606774831]
["Ophthalmology","M.D. or Equivalent","Ophthalmology",null,null,"Ophthalmology: General","Associate Professor",340162.76453432476]
["Ophthalmology","M.D. or Equivalent","Ophthalmology",null,null,"Ophthalmology: Corneal & Refractive Surgery","Associate Professor",376201.87953674019]
["Ophthalmology","M.D. or Equivalent","Ophthalmology",null,null,"Ophthalmology: Glaucoma","Associate Professor",346028.36084663699]
["Ophthalmology","M.D. or Equivalent","Ophthalmology",null,null,"Ophthalmology: Neurology","Associate Professor",298682.45033527637]
["Ophthalmology","M.D. or Equivalent","Ophthalmology",null,null,"Ophthalmology: Oculoplastic & Reconstructive Surgery","Associate Professor",366262.48929287097]
["Ophthalmology","M.D. or Equivalent","Ophthalmology",null,null,"Ophthalmology: Retina","Associate Professor",457100.9036969883]
["Ophthalmology","M.D. or Equivalent","Ophthalmology",null,null,"Ophthalmology: Pediatrics","Associate Professor",333454.12870904506]
["Ophthalmology","M.D. or Equivalent","Ophthalmology",null,null,"Optometrist","Associate Professor",180595.01089700399]
["OBGYN","M.D. or Equivalent","OBGYN",null,null,"Gynecology (only)","Associate Professor",284560.48646733392]
["Medicine - GIM","M.D. or Equivalent","Medicine","GIM",null,"Palliative Care (Adult)","Associate Professor",220518.94978495923]
["Basic Science","M.D. or Equivalent","Basic Science",null,null,"Genetics","Associate Professor",196426.52291956518]
["Neurology","M.D. or Equivalent","Neurology",null,null,"Neurology – Neuro-Intensivist","Associate Professor",295225.87000718713]
["Neurology","M.D. or Equivalent","Neurology",null,null,"Neuro-Oncologist","Associate Professor",302779.35143786302]
["Pediatrics","M.D. or Equivalent","Pediatrics",null,null,"Pediatric Radiology","Associate Professor",376527.60272689746]
["Pediatrics","M.D. or Equivalent","Pediatrics",null,null,"Pediatric Forensics","Associate Professor",212021.99893954798]
["Pediatrics","M.D. or Equivalent","Pediatrics",null,null,"Epilepsy (Pediatrics)","Associate Professor",257022.56000000003]
["Radiology","M.D. or Equivalent","Radiology",null,null,"Endovascular Radiology","Associate Professor",643647.20305107126]
["Neurosurgery","M.D. or Equivalent","Neurosurgery",null,null,"Neurosurgery: Endovascular Surgery","Associate Professor",870482.9331871107]
["Pediatrics","M.D. or Equivalent","Pediatrics",null,null,"Pediatric Cardiology: Noninvasive","Associate Professor",291253.49096927821]
["Pediatrics","M.D. or Equivalent","Pediatrics",null,null,"Pediatric Cardiology: Invasive","Associate Professor",310559.55]
["Radiology","M.D. or Equivalent","Radiology",null,null,"Radiology: Breast Imaging","Associate Professor",385784.21933441662]
["Surgery","M.D. or Equivalent","Surgery",null,null,"Thoracic Surgery","Associate Professor",514083.97397628491]
["Surgery","M.D. or Equivalent","Surgery",null,null,"Adult Cardiovascular Surgery","Associate Professor",682447.86707149865]
["Medicine - Nephr","M.D. or Equivalent","Medicine","Nephr",null,"Med - Transplant Nephrology","Associate Professor",255171.05629303574]
["Medicine - Gastro","M.D. or Equivalent","Medicine","Gastro",null,"Med - Transplant Hepatology","Associate Professor",397172.12]
["Otolaryngology","M.D. or Equivalent","Otolaryngology",null,null,"Otolaryngology – Head and Neck","Associate Professor",459654.94322401425]
["Pediatrics","Ph.D. or Research Associate Doctoral","Pediatrics",null,null,"Pediatrics: Child Development","Associate Professor",130261.3662862925]
["Psychiatry","Ph.D. or Research Associate Doctoral","Psychiatry",null,null,"Psychology","Associate Professor",125577.6759597222]
["Psychiatry","Ph.D. or Research Associate Doctoral","Psychiatry",null,null,"Neuropsychology","Associate Professor",126267.64269760637]
["Pediatrics","Ph.D. or Research Associate Doctoral","Pediatrics",null,null,"Pediatrics: Psychology (PhD Track)","Associate Professor",123220]
["Medicine - Cardiology","M.D. and Ph.D.","Medicine","Cardiology",null,"Cardiology: Electrophysiology","Associate Professor",455038.20624640113]
["Dermatology","M.D. and Ph.D.","Dermatology",null,null,"Dermatopathology","Associate Professor",451040.58033122896]
["Radiology","M.D. and Ph.D.","Radiology",null,null,"Neuroradiology","Associate Professor",384525.53800264775]
["Orthopedics","M.D. and Ph.D.","Orthopedics",null,null,"Orthopedic Surgery: Foot / Ankle","Associate Professor",498961.92681972636]
["Orthopedics","M.D. and Ph.D.","Orthopedics",null,null,"Orthopedic Surgery: Hand","Associate Professor",593768.43214646028]
["Orthopedics","M.D. and Ph.D.","Orthopedics",null,null,"Orthopedic Surgery: Joint","Associate Professor",612906.3607415749]
["Orthopedics","M.D. and Ph.D.","Orthopedics",null,null,"Orthopedic Surgery: Oncology","Associate Professor",546529.47787886439]
["Orthopedics","M.D. and Ph.D.","Orthopedics",null,null,"Orthopedic Surgery: Pediatric","Associate Professor",536586.7675735557]
["Orthopedics","M.D. and Ph.D.","Orthopedics",null,null,"Orthopedic Surgery: Shoulder/Elbow","Associate Professor",654810.69123796094]
["Orthopedics","M.D. and Ph.D.","Orthopedics",null,null,"Orthopedic Surgery: Spine","Associate Professor",835172.39230513561]
["Orthopedics","M.D. and Ph.D.","Orthopedics",null,null,"Orthopedic Surgery: Trauma","Associate Professor",713613.6345234114]
["Orthopedics","M.D. and Ph.D.","Orthopedics",null,null,"Orthopedic (Nonsurgical)","Associate Professor",357466.28990737349]
["Otolaryngology","M.D. and Ph.D.","Otolaryngology",null,null,"Otorhinolaryngology: Pediatric","Associate Professor",472593.15097566228]
["Pathology","M.D. and Ph.D.","Pathology",null,null,"Pathology: Anatomic-Cytopathology","Associate Professor",292984.37822323502]
["Pathology","M.D. and Ph.D.","Pathology",null,null,"Pathology: Hematopathology","Associate Professor",268330.30527734879]
["Pediatrics","M.D. and Ph.D.","Pediatrics",null,null,"Pediatrics: Child Development","Associate Professor",192712.26444670389]
["Pediatrics","M.D. and Ph.D.","Pediatrics",null,null,"Pediatrics: Dermatology","Associate Professor",330985.47837358661]
["Medicine - Pulmonary","M.D. and Ph.D.","Medicine","Pulmonary",null,"Sleep Medicine","Associate Professor",239417.72851725141]
["Surgery","M.D. and Ph.D.","Surgery",null,null,"Surgery: Breast","Associate Professor",404350.11509111896]
["Surgery","M.D. and Ph.D.","Surgery",null,null,"Surgery: Cardiovascular-Pediatric","Associate Professor",821964.97786547034]
["Surgery","M.D. and Ph.D.","Surgery",null,null,"Surgery: Oral","Associate Professor",421919.17619017331]
["Pediatrics","M.D. and Ph.D.","Pediatrics",null,null,"Neurosurgery - Pediatric","Associate Professor",701085.88118172251]
["OBGYN","M.D. and Ph.D.","OBGYN",null,null,"Uro-Gynecology","Associate Professor",365329.42492378107]
["Pediatrics","M.D. and Ph.D.","Pediatrics",null,null,"Urology: Pediatric","Associate Professor",531759.35508867167]
["Radiology","M.D. and Ph.D.","Radiology",null,null,"Vascular Interventional Radiology","Associate Professor",435270.32885049045]
["Neurology","M.D. and Ph.D.","Neurology",null,null,"Neurology: General","Associate Professor",247851.26321925817]
["Neurology","M.D. and Ph.D.","Neurology",null,null,"Neurology: Epilepsy/EEG","Associate Professor",253940.93220855764]
["Neurology","M.D. and Ph.D.","Neurology",null,null,"Neurology: Neuromuscular","Associate Professor",252993.43067932091]
["Neurology","M.D. and Ph.D.","Neurology",null,null,"Neurology:Stroke Medicine","Associate Professor",287256.01606774831]
["Ophthalmology","M.D. and Ph.D.","Ophthalmology",null,null,"Ophthalmology: General","Associate Professor",340162.76453432476]
["Ophthalmology","M.D. and Ph.D.","Ophthalmology",null,null,"Ophthalmology: Corneal & Refractive Surgery","Associate Professor",376201.87953674019]
["Ophthalmology","M.D. and Ph.D.","Ophthalmology",null,null,"Ophthalmology: Glaucoma","Associate Professor",346028.36084663699]
["Ophthalmology","M.D. and Ph.D.","Ophthalmology",null,null,"Ophthalmology: Neurology","Associate Professor",298682.45033527637]
["Ophthalmology","M.D. and Ph.D.","Ophthalmology",null,null,"Ophthalmology: Oculoplastic & Reconstructive Surgery","Associate Professor",366262.48929287097]
["Ophthalmology","M.D. and Ph.D.","Ophthalmology",null,null,"Ophthalmology: Retina","Associate Professor",457100.9036969883]
["Ophthalmology","M.D. and Ph.D.","Ophthalmology",null,null,"Ophthalmology: Pediatrics","Associate Professor",333454.12870904506]
["Ophthalmology","M.D. and Ph.D.","Ophthalmology",null,null,"Optometrist","Associate Professor",180595.01089700399]
["OBGYN","M.D. and Ph.D.","OBGYN",null,null,"Gynecology (only)","Associate Professor",284560.48646733392]
["Medicine - GIM","M.D. and Ph.D.","Medicine","GIM",null,"Palliative Care (Adult)","Associate Professor",220518.94978495923]
["Basic Science","M.D. and Ph.D.","Basic Science",null,null,"Genetics","Associate Professor",196426.52291956518]
["Neurology","M.D. and Ph.D.","Neurology",null,null,"Neurology – Neuro-Intensivist","Associate Professor",295225.87000718713]
["Medicine - HemOnc","M.D. and Ph.D.","Medicine","HemOnc",null,"Neuro-Oncologist","Associate Professor",302779.35143786302]
["Psychiatry","M.D. and Ph.D.","Psychiatry",null,null,"Psychology","Associate Professor",0]
["Pediatrics","M.D. and Ph.D.","Pediatrics",null,null,"Pediatric Radiology","Associate Professor",376527.60272689746]
["Pediatrics","M.D. and Ph.D.","Pediatrics",null,null,"Pediatric Forensics","Associate Professor",212021.99893954798]
["Pediatrics","M.D. and Ph.D.","Pediatrics",null,null,"Pediatrics: Psychology (PhD Track)","Associate Professor",187000]
["Pediatrics","M.D. and Ph.D.","Pediatrics",null,null,"Epilepsy (Pediatrics)","Associate Professor",257022.56000000003]
["Radiology","M.D. and Ph.D.","Radiology",null,null,"Endovascular Radiology","Associate Professor",643647.20305107126]
["Neurosurgery","M.D. and Ph.D.","Neurosurgery",null,null,"Neurosurgery: Endovascular Surgery","Associate Professor",870482.9331871107]
["Pediatrics","M.D. and Ph.D.","Pediatrics",null,null,"Pediatric Cardiology: Noninvasive","Associate Professor",291253.49096927821]
["Pediatrics","M.D. and Ph.D.","Pediatrics",null,null,"Pediatric Cardiology: Invasive","Associate Professor",310559.55]
["Radiology","M.D. and Ph.D.","Radiology",null,null,"Radiology: Breast Imaging","Associate Professor",385784.21933441662]
["Surgery","M.D. and Ph.D.","Surgery",null,null,"Thoracic Surgery","Associate Professor",514083.97397628491]
["Surgery","M.D. and Ph.D.","Surgery",null,null,"Adult Cardiovascular Surgery","Associate Professor",682447.86707149865]
["Medicine - Nephr","M.D. and Ph.D.","Medicine","Nephr",null,"Med - Transplant Nephrology","Associate Professor",255171.05629303574]
["Medicine - Gastro","M.D. and Ph.D.","Medicine","Gastro",null,"Med - Transplant Hepatology","Associate Professor",397172.12]
["Otolaryngology","M.D. and Ph.D.","Otolaryngology",null,null,"Otolaryngology – Head and Neck","Associate Professor",459654.94322401425]
[]
[]
[]
[]
[]
[]
[]
[]
[null,null,null,null,null,null,null,17]